Workbook

Sheet Troškovi
B3: Proračun događaja za [Naziv događaja]
H4: Troškovi
H6: Procijenjeno | I6: Stvarno
C7: Ukupni troškovi | H7: =SUM(D14,D22,D28,D35,H14,H22,H27) -> 1,145.00 kn | I7: =SUM(E14,E22,E28,E35,I14,I22,I27) -> 395.00 kn
C9: Web-mjesto | D9: Procijenjeno | E9: Stvarno | G9: Domjenak | H9: Procijenjeno | I9: Stvarno
C10: Naknade za prostorije i dvoranu | D10: 500.00 kn | E10: 250.00 kn | G10: Hrana
C11: Osoblje na lokaciji | D11: 400.00 kn | E11: 50.00 kn | G11: Pića
C12: Oprema | G12: Stolnjaci
C13: Stolovi i sjedala | G13: Osoblje i honorari
C14: Zbroj | D14: =SUBTOTAL(109,Tablica1[Procijenjeno]) -> 900.00 kn | E14: =SUBTOTAL(109,Tablica1[Stvarno]) -> 300.00 kn | G14: Zbroj | H14: =SUBTOTAL(109,Tablica5[Procijenjeno]) -> 0.00 kn | I14: =SUBTOTAL(109,Tablica5[Stvarno]) -> 0.00 kn
C16: Ukrasi | D16: Procijenjeno | E16: Stvarno | G16: Program | H16: Procijenjeno | I16: Stvarno
C17: Cvijeće | D17: 200.00 kn | E17: 50.00 kn | G17: Izvođači
C18: Svjećice | G18: Govornici
C19: Rasvjeta | G19: Putovanja
C20: Baloni | G20: Hotel
C21: Papirni materijal | G21: Ostalo
C22: Zbroj | D22: =SUBTOTAL(109,Tablica2[Procijenjeno]) -> 200.00 kn | E22: =SUBTOTAL(109,Tablica2[Stvarno]) -> 50.00 kn | G22: Zbroj | H22: =SUBTOTAL(109,Tablica6[Procijenjeno]) -> 0.00 kn | I22: =SUBTOTAL(109,Tablica6[Stvarno]) -> 0.00 kn
C24: Promocija | D24: Procijenjeno | E24: Stvarno | G24: Nagrade | H24: Procijenjeno | I24: Stvarno
C25: Grafički poslovi | D25: 45.00 kn | E25: 45.00 kn | G25: Vrpce/ploče/pehari
C26: Fotokopiranje/ispis | G26: Darovi
C27: Poštarina | G27: Zbroj | H27: =SUBTOTAL(109,Tablica7[Procijenjeno]) -> 0.00 kn | I27: =SUBTOTAL(109,Tablica7[Stvarno]) -> 0.00 kn
C28: Zbroj | D28: =SUBTOTAL(109,Tablica3[Procijenjeno]) -> 45.00 kn | E28: =SUBTOTAL(109,Tablica3[Stvarno]) -> 45.00 kn
C30: Razno | D30: Procijenjeno | E30: Stvarno
C31: Telefonski broj
C32: Prijevoz
C33: Zalihe tiskanica
C34: Usluge faksiranja
C35: Zbroj | D35: =SUBTOTAL(109,Tablica4[Procijenjeno]) -> 0.00 kn | E35: =SUBTOTAL(109,Tablica4[Stvarno]) -> 0.00 kn

Sheet Prihodi
B3: Proračun događaja za [Naziv događaja]
F4: Prihod
F6: Procijenjeno | G6: Stvarno
B7: Ukupni prihod | F7: =SUM(F14,F21,F28,F36) -> 1,936.00 kn | G7: =SUM(G14,G21,G28,G36) -> 1,831.00 kn
B9: Ulaznice
B10: Procijenjeno | C10: Stvarno | F10: Procijenjeno | G10: Stvarno
B11: 300 | C11: 278 | D11: Odrasli @ | E11: 5.00 kn | F11: =B11*E11 -> 1,500.00 kn | G11: =C11*E11 -> 1,390.00 kn
B12: 197 | C12: 195 | D12: Djeca @ | E12: 2.00 kn | F12: =B12*E12 -> 394.00 kn | G12: =C12*E12 -> 390.00 kn
B13: 42 | C13: 51 | D13: Ostalo @ | E13: 1.00 kn | F13: =B13*E13 -> 42.00 kn | G13: =C13*E13 -> 51.00 kn
F14: =SUM(F11:F13) -> 1,936.00 kn | G14: =SUM(G11:G13) -> 1,831.00 kn
B16: Oglasi u programu
B17: Procijenjeno | C17: Stvarno | F17: Procijenjeno | G17: Stvarno
D18: Naslovnice @ | F18: =B18*E18 -> 0.00 kn | G18: =C18*E18 -> 0.00 kn
D19: Polovine stranica @ | F19: =B19*E19 -> 0.00 kn | G19: =C19*E19 -> 0.00 kn
D20: Četvrtine stranica @ | F20: =B20*E20 -> 0.00 kn | G20: =C20*E20 -> 0.00 kn
F21: =SUM(F18:F20) -> 0.00 kn | G21: =SUM(G18:G20) -> 0.00 kn
B23: Izlagači/dobavljači
B24: Procijenjeno | C24: Stvarno | F24: Procijenjeno | G24: Stvarno
D25: Veliki štandovi @ | F25: =B25*E25 -> 0.00 kn | G25: =C25*E25 -> 0.00 kn
D26: Srednji štandovi @ | F26: =B26*E26 -> 0.00 kn | G26: =C26*E26 -> 0.00 kn
D27: Mali štandovi @ | F27: =B27*E27 -> 0.00 kn | G27: =C27*E27 -> 0.00 kn
F28: =SUM(F25:F27) -> 0.00 kn | G28: =SUM(G25:G27) -> 0.00 kn
B30: Prodaja artikala
B31: Procijenjeno | C31: Stvarno | F31: Procijenjeno | G31: Stvarno
D32: Artikli @ | F32: =B32*E32 -> 0.00 kn | G32: =C32*E32 -> 0.00 kn
D33: Artikli @ | F33: =B33*E33 -> 0.00 kn | G33: =C33*E33 -> 0.00 kn
D34: Artikli @ | F34: =B34*E34 -> 0.00 kn | G34: =C34*E34 -> 0.00 kn
D35: Artikli @ | F35: =B35*E35 -> 0.00 kn | G35: =C35*E35 -> 0.00 kn
F36: =SUM(F32:F35) -> 0.00 kn | G36: =SUM(G32:G35) -> 0.00 kn

Sheet Sažetak
B3: Proračun događaja za [Naziv događaja]
F4: Sažetak dobiti i gubitka
F6: Procijenjeno | G6: Stvarno
B7: Ukupni prihodi | F7: =Prihodi!F7 -> 1,936.00 kn | G7: =Prihodi!G7 -> 1,831.00 kn
B8: Ukupni izdaci | F8: =Troškovi!H7 -> 1,145.00 kn | G8: =Troškovi!I7 -> 395.00 kn
B9: Ukupna dobit (ili gubitak) | F9: =F7-F8 -> 791.00 kn | G9: =G7-G8 -> 1,436.00 kn
